bitfinex/quotes_BTCUSD_20260101
["timestamp","ask_amount","ask_price","bid_price","bid_amount"]
[1767284366782,0.010983,87946.0,87935.0,0.0568597]
[1767284367279,0.010983,87946.0,87936.0,0.0113719]
[1767284368254,0.010983,87946.0,87935.0,0.01137203]
[1767284368702,0.010983,87946.0,87936.0,0.0113719]
[1767284369309,0.02455303,87945.0,87936.0,0.0113719]
[1767284369480,0.02455303,87945.0,87937.0,0.01137177]
[1767284369699,0.02455303,87945.0,87938.0,0.01137164]
[1767284370880,0.02455303,87945.0,87937.0,0.01137177]
[1767284371487,0.02455303,87945.0,87938.0,0.01137164]
[1767284372741,0.02455303,87945.0,87937.0,0.01137177]
[1767284373414,0.02455303,87945.0,87938.0,0.01137164]
[1767284374094,0.02455303,87945.0,87939.0,0.01137151]
[1767284374310,0.02455303,87945.0,87938.0,0.01137164]
[1767284377171,0.02455303,87945.0,87939.0,0.01137151]
[1767284377582,0.02455303,87945.0,87938.0,0.01137164]
[1767284378143,0.02455303,87945.0,87937.0,0.01137177]
[1767284378344,0.02455303,87945.0,87938.0,0.01137164]
[1767284380126,0.02455303,87945.0,87937.0,0.01137177]
[1767284381528,0.001099,87937.0,87932.0,0.0115473]
[1767284381731,0.001099,87937.0,87932.0,0.02291972]
[1767284381938,0.001099,87937.0,87933.0,0.01137229]
[1767284382137,0.06820498,87944.0,87932.0,0.02291972]
[1767284382337,0.02456567,87943.0,87932.0,0.0115473]
[1767284382821,0.02456567,87943.0,87932.0,0.02291972]
[1767284383022,0.02456567,87943.0,87932.0,0.0115473]
[1767284383227,0.02456567,87943.0,87932.0,0.0109983]
[1767284383380,0.02456567,87943.0,87932.0,0.02237072]
[1767284383558,0.02456567,87943.0,87933.0,0.01137229]
[1767284383766,0.010983,87946.0,87934.0,0.01137216]
[1767284383966,0.02456557,87945.0,87936.0,0.0113719]
[1767284385204,0.02456557,87945.0,87937.0,0.01137177]
[1767284385376,0.02456557,87945.0,87938.0,0.01137164]
[1767284385573,0.02456557,87945.0,87937.0,0.01137177]
[1767284385784,0.02456557,87945.0,87938.0,0.01137164]
[1767284385981,0.02456557,87945.0,87937.0,0.01137177]
[1767284386160,0.02456557,87945.0,87938.0,0.01137164]
[1767284386363,0.02456557,87945.0,87937.0,0.01137177]
[1767284386584,0.02456557,87945.0,87938.0,0.01137164]
[1767284387005,0.02456557,87945.0,87937.0,0.01137177]
[1767284387212,0.02456557,87945.0,87938.0,0.01137164]
[1767284387451,0.02456557,87945.0,87937.0,0.01137177]
[1767284387842,0.02456557,87945.0,87938.0,0.01137164]
[1767284388082,0.02456557,87945.0,87937.0,0.01137177]
[1767284388288,0.02456557,87945.0,87938.0,0.01137164]
[1767284388494,0.02456557,87945.0,87937.0,0.01137177]
[1767284388691,0.02456557,87945.0,87938.0,0.01137164]
[1767284388912,0.02456557,87945.0,87937.0,0.01137177]
[1767284390210,0.0245653,87944.0,87937.0,0.01137177]
[1767284390412,0.01068945,87943.0,87937.0,0.01137177]
[1767284390572,0.010983,87946.0,87937.0,0.01137177]
[1767284392154,0.010983,87946.0,87938.0,0.01137164]
[1767284394623,0.010983,87946.0,87939.0,0.01137151]
[1767284394827,0.010983,87946.0,87938.0,0.01137164]
[1767284395766,0.010983,87946.0,87939.0,0.0682291]
[1767284395969,0.010983,87946.0,87939.0,0.01137151]
[1767284396352,0.01093937,87946.0,87940.0,0.01137138]
[1767284396779,0.01093937,87946.0,87939.0,0.01137151]
[1767284398017,0.01093937,87946.0,87940.0,0.01137138]
[1767284398242,0.01093937,87946.0,87939.0,0.01137151]
[1767284398804,0.01093937,87946.0,87940.0,0.01137138]
[1767284399185,0.01093937,87946.0,87939.0,0.01137151]
[1767284399790,0.01093937,87946.0,87938.0,0.01137164]
[1767284401169,0.01093937,87946.0,87939.0,0.01137151]
[1767284401376,0.01093937,87946.0,87938.0,0.01137164]
[1767284401614,0.01093937,87946.0,87937.0,0.01137177]
[1767284402026,0.01093937,87946.0,87938.0,0.01137164]
[1767284402425,0.0245664,87945.0,87938.0,0.01137164]
[1767284405903,0.0245664,87945.0,87937.0,0.01137177]
[1767284406113,0.0245664,87945.0,87935.0,0.01137203]
[1767284406521,0.0245664,87945.0,87937.0,0.01137177]
[1767284407295,0.0245664,87945.0,87938.0,0.01137164]
[1767284409313,0.0245664,87945.0,87939.0,0.01137151]
[1767284409516,0.0245664,87945.0,87938.0,0.01137164]
[1767284411302,0.0245664,87945.0,87939.0,0.01137151]
[1767284411511,0.0245664,87945.0,87938.0,0.01137164]
[1767284411707,0.0245664,87945.0,87939.0,0.01137151]
[1767284412957,0.0245664,87945.0,87938.0,0.01137164]
[1767284413345,0.0245664,87945.0,87939.0,0.01137151]
[1767284413543,0.0245664,87945.0,87938.0,0.01137164]
[1767284414926,0.0245664,87945.0,87939.0,0.01137151]
[1767284416634,0.0245664,87945.0,87938.0,0.01137164]
[1767284417172,0.0245664,87945.0,87939.0,0.01137151]
[1767284417990,0.0245664,87945.0,87938.0,0.01137164]
[1767284418184,0.00055,87938.0,87935.0,0.01137203]
[1767284418389,0.00055,87938.0,87935.0,0.13344608]
[1767284418792,0.0245664,87945.0,87938.0,0.01137164]
[1767284418989,0.0245664,87945.0,87935.0,0.13344608]
[1767284419190,0.0245664,87945.0,87938.0,0.01137164]
[1767284419404,0.0245664,87945.0,87937.0,0.01137177]
[1767284419607,0.0245664,87945.0,87938.0,0.01137164]
[1767284420057,0.0245664,87945.0,87936.0,0.0113719]
[1767284420801,0.0245664,87945.0,87937.0,0.01137177]
[1767284422736,0.0245664,87945.0,87938.0,0.01137164]
[1767284422929,0.0245664,87945.0,87937.0,0.01137177]
[1767284423500,0.0245664,87945.0,87939.0,0.01137151]
[1767284423774,0.0114,87947.0,87940.0,0.04461979]
[1767284424007,0.0114,87947.0,87938.0,0.01137164]
[1767284424155,0.0114,87947.0,87937.0,0.01137177]
[1767284424373,0.0114,87947.0,87938.0,0.01137164]
[1767284424543,0.0114,87947.0,87937.0,0.01137177]
[1767284424748,0.0114,87947.0,87938.0,0.01137164]
[1767284425749,0.0114,87947.0,87937.0,0.01137177]
[1767284426621,0.0114,87947.0,87938.0,0.01137164]
[1767284427761,0.0114,87947.0,87936.0,0.0113719]
[1767284427982,0.00055,87938.0,87935.0,0.06918323]
[1767284428208,0.00055,87938.0,87935.0,0.08055526]
[1767284428430,0.0114,87947.0,87935.0,0.08055526]
[1767284428606,0.0114,87947.0,87936.0,0.0113719]
[1767284428971,0.0114,87947.0,87937.0,0.01137177]
[1767284429538,0.0114,87947.0,87938.0,0.01137164]
[1767284429748,0.0114,87947.0,87937.0,0.01137177]
[1767284429863,0.0114,87947.0,87935.0,0.08055526]
[1767284430060,0.0114,87947.0,87936.0,0.0113719]
[1767284430710,0.0114,87947.0,87937.0,0.01137177]
[1767284430913,0.0114,87947.0,87936.0,0.0113719]
[1767284431300,0.0114,87947.0,87937.0,0.01137177]
[1767284432310,0.0114,87947.0,87938.0,0.01137164]
[1767284433020,0.0114,87947.0,87937.0,0.01137177]
[1767284433421,0.0114,87947.0,87936.0,0.0113719]
[1767284433807,0.0114,87947.0,87937.0,0.01137177]
[1767284435652,0.02457077,87946.0,87937.0,0.01137177]
[1767284436184,0.02457077,87946.0,87939.0,0.01137151]
[1767284436787,0.02457077,87946.0,87937.0,0.01137177]
[1767284437017,0.02457077,87946.0,87939.0,0.01137151]
[1767284437594,0.02457077,87946.0,87938.0,0.01137164]
[1767284438343,0.02457077,87946.0,87939.0,0.01137151]
[1767284438847,0.02457077,87946.0,87938.0,0.01137164]
[1767284439068,0.02457077,87946.0,87939.0,0.01137151]
[1767284439672,0.02457077,87946.0,87938.0,0.01137164]
[1767284439874,0.02457077,87946.0,87939.0,0.01137151]
[1767284440380,0.02457077,87946.0,87941.0,0.01137126]
[1767284440535,0.02457077,87946.0,87940.0,0.01137138]
[1767284443277,0.02457077,87946.0,87941.0,0.01137126]
[1767284443499,0.02457077,87946.0,87940.0,0.01137138]
[1767284443699,0.0114,87949.0,87943.0,0.011371]
[1767284443919,0.02457093,87948.0,87943.0,0.011371]
[1767284444277,0.02457093,87948.0,87942.0,0.01137113]
[1767284445098,0.02457093,87948.0,87943.0,0.011371]
[1767284445737,0.02457093,87948.0,87941.0,0.01137126]
[1767284445935,0.02457093,87948.0,87942.0,0.01137113]
[1767284446337,0.0114,87949.0,87942.0,0.01137113]
[1767284446597,0.02456384,87948.0,87942.0,0.01137113]
[1767284447476,0.02456384,87948.0,87943.0,0.011371]
[1767284447828,0.02456384,87948.0,87942.0,0.01137113]
[1767284448237,0.02456384,87948.0,87943.0,0.011371]
[1767284449039,0.0114,87949.0,87943.0,0.011371]
[1767284450029,0.0114,87949.0,87944.0,0.01137087]
[1767284450158,0.0114,87949.0,87943.0,0.011371]
[1767284450781,0.0114,87949.0,87944.0,0.01137087]
[1767284451409,0.0114,87949.0,87943.0,0.011371]
[1767284451886,0.0114,87949.0,87942.0,0.01137113]
[1767284452087,0.0114,87949.0,87943.0,0.011371]
[1767284452648,0.02456899,87948.0,87943.0,0.011371]
[1767284452948,0.02456899,87948.0,87942.0,0.01137113]
[1767284453334,0.02456899,87948.0,87943.0,0.011371]
[1767284453741,0.02456899,87948.0,87944.0,0.01137087]
[1767284454098,0.02456899,87948.0,87943.0,0.011371]
[1767284454510,0.02456899,87948.0,87944.0,0.01137087]
[1767284455141,0.02456899,87948.0,87943.0,0.011371]
[1767284455378,0.02456899,87948.0,87942.0,0.01137113]
[1767284455592,0.02456899,87948.0,87943.0,0.011371]
[1767284455805,0.02456899,87948.0,87943.0,0.01132852]
[1767284456204,0.02456899,87948.0,87944.0,0.01137087]
[1767284457306,0.0001473,87954.0,87948.0,0.0574003]
[1767284457528,0.0114,87953.0,87948.0,0.01191935]
[1767284457738,0.0114,87953.0,87948.0,0.01137035]
[1767284458310,0.0114,87953.0,87947.0,0.01137048]
[1767284458502,0.0114,87953.0,87948.0,0.01137035]
[1767284459599,0.0114,87953.0,87947.0,0.01137048]
[1767284459796,0.0114,87953.0,87948.0,0.01137035]
[1767284460277,0.0114,87953.0,87948.0,0.07203018]
[1767284460494,0.0114,87953.0,87948.0,0.01137035]
[1767284460831,0.0114,87953.0,87947.0,0.01137048]
[1767284461242,0.0114,87953.0,87946.0,0.01137061]
[1767284461442,0.0114,87953.0,87947.0,0.01137048]
[1767284461776,0.0114,87953.0,87948.0,0.01137035]
[1767284461981,0.0114,87953.0,87947.0,0.01137048]
[1767284462317,0.00018743,87954.0,87949.0,0.06037336]
[1767284464384,0.00018743,87954.0,87947.0,0.01137048]
[1767284465206,0.00018743,87954.0,87948.0,0.01137035]
[1767284465441,0.00018743,87954.0,87947.0,0.01137048]
[1767284465644,0.00018743,87954.0,87948.0,0.01137035]
[1767284465848,0.00018743,87954.0,87949.0,0.01137022]
[1767284466058,0.00018743,87954.0,87950.0,0.01137009]
[1767284466385,0.00018743,87954.0,87949.0,0.01137022]
[1767284466522,0.00018743,87954.0,87947.0,0.01137048]
[1767284467143,0.00018743,87954.0,87948.0,0.01137035]
[1767284468086,0.00018743,87954.0,87950.0,0.01137009]
[1767284468240,0.00018743,87954.0,87949.0,0.01137022]
[1767284468650,0.00018743,87954.0,87951.0,0.01136996]
[1767284468849,4.3e-07,87954.0,87952.0,0.05684867]
[1767284472085,4.3e-07,87954.0,87952.0,0.11601176]
[1767284472285,4.3e-07,87954.0,87953.0,0.05916309]
[1767284474325,4.3e-07,87954.0,87953.0,0.04097609]
[1767284475834,4.3e-07,87954.0,87953.0,0.09782463]
[1767284478178,4.3e-07,87954.0,87953.0,0.05684854]
[1767284479769,4.3e-07,87954.0,87951.0,0.06821931]
[1767284481243,4.3e-07,87954.0,87952.0,0.04002642]
[1767284481510,4.3e-07,87954.0,87952.0,0.02702642]
[1767284481755,4.3e-07,87954.0,87953.0,0.05684854]
[1767284481900,4.3e-07,87954.0,87953.0,0.08377989]
[1767284482690,0.0001473,87963.0,87958.0,0.01136906]
[1767284482947,0.0001473,87963.0,87957.0,0.01136919]
[1767284483158,0.0001473,87963.0,87954.0,0.06821695]
[1767284483365,0.0001473,87963.0,87956.0,0.01136932]
[1767284483568,0.0001473,87963.0,87957.0,0.01136919]
[1767284483729,0.0001473,87963.0,87958.0,0.01136906]
[1767284483930,0.0001473,87963.0,87956.0,0.01136932]
[1767284484829,0.0001473,87963.0,87958.0,0.01136906]
[1767284485335,0.0001473,87963.0,87959.0,0.01136893]
[1767284485551,0.0001473,87963.0,87956.0,0.06821567]
[1767284485552,0.00055,87959.0,87956.0,0.01136932]
[1767284485752,0.00055,87959.0,87955.0,0.01136945]
[1767284485977,0.00055,87959.0,87954.0,0.01136957]
[1767284486210,0.0001473,87963.0,87954.0,0.01136957]
[1767284486338,0.0001473,87963.0,87952.0,0.06821873]
[1767284486542,0.0001473,87963.0,87952.0,0.01136983]
[1767284487277,0.00055,87952.0,87948.0,0.09472215]
[1767284487476,0.00055,87952.0,87948.0,0.0114]
[1767284487661,0.06399556,87959.0,87948.0,0.0114]
[1767284488396,0.06399556,87959.0,87948.0,0.02222035]
[1767284488596,0.06399556,87959.0,87948.0,0.01085]
[1767284488797,0.06399556,87959.0,87948.0,0.02222035]
[1767284489217,0.06399556,87959.0,87948.0,0.01085]
[1767284489802,0.06399556,87959.0,87948.0,0.02222035]
[1767284490013,0.06399556,87959.0,87948.0,0.01085]
[1767284490219,0.06399556,87959.0,87948.0,0.02222035]
[1767284490434,0.06399556,87959.0,87948.0,0.01085]
[1767284491169,0.06399556,87959.0,87948.0,0.02222035]
[1767284492238,0.06399556,87959.0,87949.0,0.01137022]
[1767284492576,0.06399556,87959.0,87948.0,0.02222035]
[1767284493271,0.06399556,87959.0,87948.0,0.01085]
[1767284493626,0.06399556,87959.0,87948.0,0.02222035]
[1767284494602,0.06399556,87959.0,87949.0,0.01137022]
[1767284495047,0.06399556,87959.0,87948.0,0.02222035]
[1767284495695,0.06399556,87959.0,87949.0,0.01137022]
[1767284495910,0.06399556,87959.0,87948.0,0.01085]
[1767284496121,0.06399556,87959.0,87948.0,0.02222035]
[1767284497177,0.06399556,87959.0,87948.0,0.01085]
[1767284497596,0.06399556,87959.0,87948.0,0.02222035]
[1767284498198,0.06399556,87959.0,87949.0,0.01137022]
[1767284498398,0.06399556,87959.0,87948.0,0.01085]
[1767284498620,0.06399556,87959.0,87948.0,0.02222035]
[1767284499058,0.06399556,87959.0,87948.0,0.01085]
[1767284499257,0.06399556,87959.0,87948.0,0.02222035]
[1767284499689,0.06399556,87959.0,87948.0,0.01085]
[1767284499886,0.06399556,87959.0,87948.0,0.02222035]
[1767284500091,0.06399556,87959.0,87949.0,0.01137022]
[1767284500576,0.06399556,87959.0,87948.0,0.02222035]
[1767284500972,0.06399556,87959.0,87948.0,0.01085]
[1767284501405,0.06399556,87959.0,87948.0,0.02222035]
[1767284501681,0.06399556,87959.0,87948.0,0.01085]
[1767284502098,0.06399556,87959.0,87948.0,0.02222035]
[1767284502297,0.06399556,87959.0,87948.0,0.01085]
[1767284502524,0.06399556,87959.0,87948.0,0.02222035]
[1767284502717,0.06399556,87959.0,87948.0,0.01085]
[1767284503359,0.06399556,87955.0,87945.0,0.0114]
[1767284503545,0.06399556,87955.0,87944.0,0.01137087]
[1767284503546,0.06399556,87955.0,87934.0,0.04551437]
[1767284503727,0.06399556,87949.0,87936.0,0.0113719]
[1767284504112,0.06399556,87949.0,87938.0,0.01137164]
[1767284504288,0.06399556,87949.0,87939.0,0.01137151]
[1767284504503,0.06399556,87949.0,87940.0,0.01137138]
[1767284505153,0.06399556,87949.0,87941.0,0.01137126]
[1767284505856,0.06399556,87949.0,87938.0,0.01137164]
[1767284506339,0.06399556,87949.0,87936.0,0.0113719]
[1767284506672,0.06399556,87949.0,87938.0,0.01137164]
[1767284507091,0.06399556,87949.0,87937.0,0.01137177]
[1767284507327,0.06399556,87949.0,87938.0,0.01137164]
[1767284507840,0.06399556,87949.0,87940.0,0.01137138]
[1767284509301,0.06399556,87949.0,87938.0,0.01137164]
[1767284510141,0.06399556,87949.0,87939.0,0.01137151]
[1767284510569,0.06399556,87948.0,87939.0,0.01137151]
[1767284510796,0.06399556,87948.0,87938.0,0.01137164]
[1767284510998,0.06399556,87948.0,87937.0,0.01137177]
[1767284511207,0.06399556,87946.0,87938.0,0.01137164]
[1767284511822,0.06399556,87946.0,87936.0,0.0113719]
[1767284512022,0.50863657,87946.0,87937.0,0.01137177]
[1767284512693,0.50863657,87946.0,87936.0,0.0113719]
[1767284513031,0.50863657,87946.0,87935.0,0.02277203]
[1767284513219,0.50863657,87946.0,87936.0,0.0113719]
[1767284513418,0.50863657,87946.0,87935.0,0.02277203]
[1767284513618,0.44464101,87945.0,87936.0,0.0113719]
[1767284514135,0.44464101,87945.0,87937.0,0.01137177]
[1767284514341,0.44464101,87945.0,87936.0,0.0113719]
[1767284514819,0.44464101,87945.0,87937.0,0.01137177]
[1767284515230,0.44464101,87945.0,87936.0,0.0113719]
[1767284515231,0.44464101,87945.0,87938.0,0.01137164]
[1767284515447,0.44464101,87945.0,87936.0,0.0113719]
[1767284515687,0.44464101,87945.0,87937.0,0.01137177]
[1767284516141,0.44464101,87945.0,87935.0,0.02277203]
[1767284516680,0.44464101,87945.0,87935.0,0.0114]
[1767284516903,0.06612722,87944.0,87935.0,0.00372023]
[1767284517111,0.06612722,87944.0,87932.0,0.0115473]
[1767284517312,0.06612722,87941.0,87932.0,0.0115473]
[1767284519228,0.06612722,87941.0,87932.0,0.02291972]
[1767284519540,0.06612722,87941.0,87932.0,0.0115473]
[1767284525318,0.06612722,87941.0,87932.0,0.00302607]
[1767284527257,0.06612722,87941.0,87930.0,0.0004]
[1767284527407,0.44464101,87940.0,87930.0,0.0004]
[1767284527592,0.06612722,87939.0,87930.0,0.0004]
[1767284528790,0.06612722,87939.0,87927.0,0.0004]
[1767284529642,0.06612722,87936.0,87927.0,0.0004]
[1767284530382,0.06612722,87936.0,87927.0,0.01177307]
[1767284531031,0.06612722,87936.0,87928.0,0.01137294]
[1767284531543,0.06612722,87936.0,87929.0,0.01137281]
[1767284531901,0.06612722,87936.0,87928.0,0.01137294]
[1767284532113,0.06612722,87936.0,87929.0,0.01137281]
[1767284532474,0.06612722,87936.0,87927.0,0.01177307]
[1767284532653,0.06612722,87936.0,87927.0,0.0004]
[1767284532876,0.06612722,87936.0,87927.0,0.01177307]
[1767284533149,0.06612722,87936.0,87927.0,0.0004]
[1767284536471,0.06612722,87936.0,87927.0,0.01177307]
[1767284537075,0.06612722,87936.0,87927.0,0.0004]
[1767284537438,0.06612722,87936.0,87927.0,0.01177307]
[1767284537637,0.06612722,87936.0,87927.0,0.0004]
[1767284539403,0.06612722,87936.0,87927.0,0.01177307]
[1767284539785,0.06612722,87936.0,87928.0,0.01137294]
[1767284539992,0.06612722,87936.0,87927.0,0.0004]
[1767284540190,0.06612722,87936.0,87927.0,0.01177307]
[1767284540390,0.06612722,87936.0,87927.0,0.0004]
[1767284542095,0.06612722,87936.0,87927.0,0.01177307]
[1767284542291,0.06612722,87936.0,87928.0,0.01137294]
[1767284542936,0.06612722,87936.0,87928.0,0.0003533]
[1767284544226,0.06612722,87936.0,87928.0,0.01172624]
[1767284545076,0.06612722,87936.0,87928.0,0.0003533]
[1767284546711,0.06295829,87927.0,87914.0,0.0001473]
[1767284546906,0.06295829,87927.0,87903.0,0.05688029]
[1767284546907,0.06295829,87919.0,87903.0,0.01593019]
[1767284547112,0.06295829,87915.0,87906.0,0.00059541]
[1767284547308,0.01137577,87906.0,87905.0,0.01157591]
[1767284547536,0.010349,87906.0,87905.0,0.01157591]
[1767284548058,0.06295829,87915.0,87906.0,0.06825471]
[1767284548264,0.0114,87919.0,87910.0,0.01137527]
[1767284548660,0.44464101,87920.0,87913.0,0.01137488]
[1767284548817,0.06310559,87928.0,87913.0,0.01137488]
[1767284548818,0.0114,87922.0,87913.0,0.01137488]
[1767284549025,0.01137231,87922.0,87915.0,0.01137462]
[1767284549224,0.01137231,87922.0,87914.0,0.01137475]
[1767284550546,0.01137231,87922.0,87915.0,0.01137462]
[1767284550741,0.01137231,87922.0,87914.0,0.01137475]
[1767284551167,0.01137231,87922.0,87915.0,0.01137462]
[1767284551546,0.01137231,87922.0,87914.0,0.01137475]
[1767284551933,0.01137231,87922.0,87916.0,0.01137449]
[1767284552145,0.01137231,87922.0,87916.0,0.06824646]
[1767284552348,0.01137231,87922.0,87917.0,0.01137436]
[1767284552629,0.01137231,87922.0,87918.0,0.01137423]
[1767284552763,0.01147231,87922.0,87919.0,0.0113741]
[1767284552964,0.0001,87922.0,87919.0,0.0113741]
[1767284553828,0.0001473,87928.0,87920.0,0.01137397]
[1767284554025,0.0114,87923.0,87920.0,0.01137397]
[1767284554858,0.0114,87923.0,87919.0,0.00774807]
[1767284555252,0.0114,87923.0,87920.0,0.01137397]
[1767284556310,0.0001473,87928.0,87921.0,0.01137384]
[1767284556516,0.0114,87927.0,87921.0,0.00915982]
[1767284556849,0.07435829,87927.0,87921.0,0.00915982]
[1767284557266,0.0114,87927.0,87924.0,0.01137345]
[1767284557484,0.0114,87927.0,87923.0,0.01137358]
[1767284558164,0.0114,87927.0,87924.0,0.01137345]
[1767284558364,0.06295829,87926.0,87918.0,0.01137423]
[1767284558577,0.06295829,87926.0,87921.0,0.01137384]
[1767284558779,0.06295829,87926.0,87922.0,0.01137371]
[1767284558982,0.06295829,87926.0,87921.0,0.01137384]
[1767284559244,0.06295829,87926.0,87919.0,0.0113741]
[1767284559443,0.06295829,87926.0,87920.0,0.01137397]
[1767284559646,0.06295829,87926.0,87921.0,0.01137384]
[1767284560309,0.06295829,87926.0,87922.0,0.01137371]
[1767284560682,0.06295829,87926.0,87921.0,0.01137384]
[1767284560913,0.06295829,87926.0,87922.0,0.01137371]
[1767284561083,0.06295829,87926.0,87921.0,0.01137384]
[1767284561281,0.06295829,87926.0,87922.0,0.01137371]
[1767284561530,0.06295829,87926.0,87921.0,0.01137384]
[1767284561742,0.06295829,87926.0,87922.0,0.01137371]
[1767284561984,0.0115473,87928.0,87921.0,0.00612113]
[1767284562369,0.0115473,87928.0,87922.0,0.01137371]
[1767284562702,0.0115473,87928.0,87921.0,0.00612113]
[1767284563401,0.0115473,87928.0,87921.0,0.01137384]
[1767284564061,0.000549,87921.0,87917.0,0.01137436]
[1767284564475,0.000549,87921.0,87918.0,0.01137423]
[1767284564696,0.07450559,87928.0,87917.0,0.01137436]
[1767284565442,0.07450559,87928.0,87918.0,0.01137423]
[1767284565812,0.07450559,87928.0,87917.0,0.01137436]
[1767284566561,0.07450559,87928.0,87914.0,0.01137475]
[1767284566754,0.07450559,87928.0,87913.0,0.05687427]
[1767284566755,0.000549,87917.0,87913.0,0.01137488]
[1767284566897,0.000549,87917.0,87913.0,0.01144719]
[1767284567091,0.44464101,87923.0,87913.0,0.01144719]
[1767284567092,0.06295829,87922.0,87913.0,7.231e-05]
[1767284567683,0.06295829,87922.0,87913.0,0.01144719]
[1767284568391,0.06295829,87922.0,87914.0,0.01137475]
[1767284568597,0.0115473,87928.0,87914.0,0.01137475]
[1767284568810,0.0115473,87928.0,87913.0,7.231e-05]
[1767284568811,0.06295829,87927.0,87913.0,7.231e-05]
[1767284569005,0.06295829,87927.0,87913.0,0.01144719]
[1767284569205,0.06295829,87927.0,87914.0,0.01137475]
[1767284569752,0.06295829,87927.0,87913.0,0.01144719]
[1767284570360,0.44464101,87923.0,87914.0,0.01137475]
[1767284570568,0.44464101,87923.0,87913.0,0.01144719]
[1767284570711,0.44464101,87923.0,87914.0,0.01137475]
[1767284571118,0.44464101,87923.0,87915.0,0.01137462]
[1767284571494,0.44464101,87923.0,87916.0,0.01137449]
[1767284572029,0.44464101,87923.0,87914.0,0.01137475]
[1767284572232,0.44464101,87923.0,87915.0,0.01137462]
[1767284572381,0.06295829,87927.0,87916.0,0.01137449]
[1767284572579,0.06295829,87927.0,87915.0,0.01137462]
[1767284572792,0.06295829,87927.0,87914.0,0.01137475]
[1767284573049,0.06295829,87927.0,87916.0,0.01137449]
[1767284573602,0.06295829,87927.0,87919.0,0.0113741]
[1767284573785,0.06295829,87927.0,87917.0,0.06824618]
[1767284573786,0.06295829,87927.0,87918.0,0.01137423]
[1767284573986,0.06295829,87927.0,87920.0,0.01137397]
[1767284574272,0.06295829,87927.0,87919.0,0.0113741]
[1767284574466,0.06295829,87927.0,87920.0,0.01137397]
[1767284574880,0.06295829,87927.0,87919.0,0.0113741]
[1767284575456,0.06295829,87927.0,87920.0,0.01137397]
[1767284576406,0.0245324,87926.0,87920.0,0.01137397]
[1767284576708,0.0906637,87926.0,87921.0,0.05686923]
[1767284576843,0.0661313,87926.0,87921.0,0.05686923]
[1767284577042,0.0661313,87926.0,87921.0,0.06824307]
[1767284577243,0.0661313,87926.0,87922.0,0.01137371]
[1767284577471,0.0661313,87926.0,87921.0,0.01137384]
[1767284577672,0.0661313,87926.0,87922.0,0.01137371]
[1767284578079,0.0661313,87926.0,87921.0,0.01137384]
[1767284578456,0.0661313,87926.0,87922.0,0.01137371]
[1767284578800,0.0661313,87926.0,87921.0,0.01137384]
[1767284578977,0.0661313,87926.0,87922.0,0.01137371]
[1767284579305,0.0661313,87926.0,87921.0,0.01137384]
[1767284579502,0.0115473,87928.0,87922.0,0.00976125]
[1767284579650,0.02453787,87927.0,87922.0,0.00976125]
[1767284580731,0.02453787,87927.0,87921.0,0.01137384]
[1767284581154,0.02453787,87927.0,87919.0,0.00712191]
[1767284581526,0.02453787,87927.0,87921.0,0.01137384]
[1767284581753,0.02453787,87927.0,87925.0,0.05686664]
[1767284581953,0.0001473,87928.0,87925.0,0.06823996]
[1767284582075,0.0001473,87928.0,87927.0,0.05686535]
[1767284582696,0.0001473,87928.0,87925.0,0.06823996]
[1767284583507,0.0001473,87928.0,87926.0,0.05686543]
[1767284584160,0.0114,87934.0,87925.0,0.06823996]
[1767284584161,0.02454372,87931.0,87929.0,0.05686351]
[1767284584368,0.00051629,87936.0,87928.0,0.06823764]
[1767284584569,0.00051629,87936.0,87931.0,0.01137255]
[1767284584770,0.02505588,87936.0,87932.0,0.01137242]
[1767284584971,0.02453959,87935.0,87932.0,0.01137242]
[1767284585220,0.00051629,87936.0,87933.0,0.01137229]
[1767284585424,0.00051629,87936.0,87933.0,0.01082329]
[1767284585425,0.02505187,87936.0,87933.0,0.01082329]
[1767284585623,0.02453558,87935.0,87933.0,0.01082329]
[1767284585874,0.00051629,87936.0,87933.0,0.01082329]
[1767284586326,0.00051629,87936.0,87933.0,0.01137229]
[1767284586929,0.00051629,87936.0,87932.0,0.01137242]
[1767284587298,0.00051629,87936.0,87930.0,0.01137268]
[1767284587500,0.06664759,87936.0,87931.0,0.01137255]
[1767284587699,0.06664759,87936.0,87932.0,0.01137242]
[1767284588145,0.06664759,87936.0,87931.0,0.01137255]
[1767284588851,0.06664759,87936.0,87932.0,0.01137242]
[1767284589552,0.06664759,87936.0,87933.0,0.01137229]
[1767284589990,0.06664759,87936.0,87932.0,0.01137242]
[1767284590392,0.00051629,87936.0,87933.0,0.01137229]
[1767284590587,0.00051629,87936.0,87932.0,0.01137242]
[1767284590822,0.00051629,87936.0,87931.0,0.01137255]
[1767284590970,0.00051629,87936.0,87932.0,0.01137242]
[1767284591177,0.00051629,87936.0,87933.0,0.01137229]
[1767284591985,0.00051629,87936.0,87932.0,0.01137242]
[1767284592249,0.00051629,87936.0,87933.0,0.01137229]
[1767284593185,0.00051629,87936.0,87934.0,0.05686082]
[1767284593478,0.00051629,87936.0,87933.0,0.01137229]
[1767284594259,0.00051629,87936.0,87933.0,0.06823314]
[1767284595533,0.0114,87945.0,87938.0,0.01137164]
[1767284595727,0.0114,87945.0,87933.0,0.00626045]
[1767284595728,0.0661313,87937.0,87933.0,0.00626045]
[1767284595937,0.0661313,87937.0,87934.0,0.01137216]
[1767284596329,0.0661313,87937.0,87933.0,0.00626045]
[1767284596744,0.0661313,87944.0,87933.0,0.00626045]
[1767284596953,0.0661313,87944.0,87934.0,0.01137216]
[1767284597130,0.0661313,87944.0,87933.0,0.00626045]
[1767284597498,0.0661313,87944.0,87934.0,0.01137216]
[1767284598251,0.0661313,87944.0,87933.0,0.00626045]
[1767284598428,0.0661313,87944.0,87934.0,0.01137216]
[1767284600271,0.0661313,87944.0,87935.0,0.01137203]
[1767284600494,0.0661313,87944.0,87934.0,0.01137216]
[1767284600724,0.0661313,87944.0,87935.0,0.01137203]
[1767284600977,0.0661313,87944.0,87936.0,0.0113719]
[1767284601734,0.0661313,87944.0,87937.0,0.01137177]
[1767284601938,0.0661313,87944.0,87936.0,0.0113719]
[1767284602251,0.0661313,87944.0,87937.0,0.01137177]
[1767284602690,0.0661313,87944.0,87935.0,0.01137203]
[1767284602936,0.000516,87937.0,87934.0,0.06460452]
[1767284603286,0.0661313,87944.0,87936.0,0.0113719]
[1767284603913,0.000516,87936.0,87934.0,0.00774419]
[1767284604144,0.000516,87936.0,87932.0,0.01137242]
[1767284604349,0.0661313,87944.0,87933.0,0.01137229]
[1767284604774,0.0661313,87944.0,87934.0,0.01137216]
[1767284605110,0.0661313,87944.0,87936.0,0.0113719]
[1767284605337,0.0661313,87944.0,87937.0,0.01137177]
[1767284605688,0.0661313,87944.0,87934.0,0.01137216]
[1767284606056,0.0661313,87944.0,87933.0,0.06823322]
[1767284606485,0.0661313,87944.0,87933.0,0.01137229]
[1767284609167,0.0661313,87944.0,87932.0,0.01137242]
[1767284609482,0.0661313,87944.0,87934.0,0.01137216]
[1767284610045,0.0661313,87944.0,87936.0,0.0113719]